bitfinex-derivatives/quotes_ETHF0:USTF0_20250410
["timestamp","ask_amount","ask_price","bid_price","bid_amount"]
[1744297397974,7.11717,1559.6,1559.3,1.8171]
[1744297398177,5.834,1559.7,1559.3,9.47542]
[1744297398378,1.2832,1559.5,1559.4,1.8171]
[1744297398570,1.28316,1559.6,1559.4,3.10035]
[1744297398775,5.834,1559.7,1559.4,3.10035]
[1744297398776,1.2832,1559.5,1559.4,3.10035]
[1744297398973,1.2832,1559.5,1559.4,1.8171]
[1744297399281,4.491,1559.5,1559.4,1.8171]
[1744297399485,1.28342,1559.3,1559.1,4.4913]
[1744297399679,0.0096043,1559.8,1559.2,1.8705]
[1744297399870,1.28317,1559.6,1559.3,3.2078]
[1744297400071,0.0096043,1559.8,1559.4,1.8705]
[1744297400277,0.0096043,1559.8,1559.7,1.28304]
[1744297400877,6.41229,1560.5,1559.7,1.28304]
[1744297400878,5.834,1560.7,1560.5,1.28233]
[1744297401067,1.28212,1560.9,1560.6,1.8705]
[1744297401270,4.87701326,1561.1,1560.8,6.41314]
[1744297401473,4.87701326,1561.1,1561.0,4.48977]
[1744297401775,4.87701326,1561.1,1561.0,3.2078]
[1744297401981,4.87701326,1561.1,1561.0,3.15247]
[1744297402284,4.87701326,1561.1,1561.0,1.8705]
[1744297402470,4.87701326,1561.1,1561.0,3.15247]
[1744297402666,4.87701326,1561.1,1561.0,1.8705]
[1744297403374,4.87701326,1561.1,1561.0,3.15247]
[1744297403980,1.96521326,1561.1,1561.0,8.15247]
[1744297404281,0.0096043,1561.2,1561.1,1.28189]
[1744297404476,0.0096043,1561.2,1561.1,10.86369]
[1744297404672,3.2078,1561.5,1561.1,10.86364]
[1744297404873,3.2078,1561.3,1560.9,0.0096043]
[1744297405275,1.28197,1561.0,1560.9,1.8683043]
[1744297406080,4.4993443,1561.1,1560.9,1.8683043]
[1744297406283,1.28197,1561.0,1560.9,1.8683043]
[1744297406781,0.0096043,1561.1,1560.9,3.1503143]
[1744297406975,0.0096043,1561.1,1560.9,1.8683043]
[1744297407177,0.0096043,1561.1,1561.0,1.28197]
[1744297407383,0.0096043,1561.1,1561.0,11.63655315]
[1744297407587,0.0096043,1561.1,1561.0,18.39385315]
[1744297408276,1.28143,1561.7,1561.5,1.28153]
[1744297408476,1.28143,1561.7,1561.0,23.10788315]
[1744297408477,4.48923,1561.7,1561.6,1.8632]
[1744297408676,6.35473,1561.7,1561.6,1.8632]
[1744297408979,3.2078,1561.7,1561.6,1.8632]
[1744297409183,4.48919,1561.7,1561.6,1.8632]
[1744297409485,0.0096043,1561.8,1561.6,3.14465]
[1744297409677,0.0096043,1561.8,1561.7,1.28139]
[1744297409877,0.0096043,1561.8,1561.7,3.19909]
[1744297410285,0.0096043,1561.8,1561.7,9.57109]
[1744297410488,1.281,1562.2,1562.0,1.28107]
[1744297410681,1.28098,1562.2,1562.1,1.9177]
[1744297411287,4.48878,1562.2,1562.1,1.9177]
[1744297411588,11.41041,1562.2,1561.7,6.372]
[1744297411786,0.0096043,1562.3,1561.8,1.9177]
[1744297411985,3.2174043,1562.3,1562.0,0.0096043]
[1744297412184,1.28107,1562.1,1562.0,0.0096043]
[1744297412387,4.48887,1562.1,1562.0,1.8819043]
[1744297412587,5.834,1562.2,1562.0,0.0096043]
[1744297412891,4.48887,1562.1,1562.0,0.0096043]
[1744297413293,11.33367,1562.1,1562.0,0.0096043]
[1744297413597,17.16767,1562.1,1562.0,0.0096043]
[1744297414994,1.28139,1561.7,1561.6,1.8723]
[1744297415190,3.2037,1561.6,1561.0,6.371]
[1744297415491,1.28168,1561.4,1561.3,1.28168]
[1744297415995,3.2078,1561.5,1561.4,1.28164]
[1744297416206,0.0096043,1561.5,1561.4,1.28164]
[1744297416493,0.0096043,1561.5,1561.4,3.05834]
[1744297417995,0.0096043,1561.5,1561.4,17.63614]
[1744297418193,5.834,1562.1,1561.4,16.3545]
[1744297418394,6.41047,1562.1,1561.5,4.9806]
[1744297418700,3.2078,1562.1,1562.0,1.28109]
[1744297418993,4.48887,1562.1,1562.0,1.28109]
[1744297419195,3.2078,1562.1,1562.0,1.28109]
[1744297419693,0.0096043,1562.2,1562.1,1.28107]
[1744297419996,0.0096043,1562.2,1562.1,4.48887]
[1744297420295,7.35722182,1562.6,1562.5,1.28074]
[1744297420497,7.35722182,1562.6,1562.5,7.79374]
[1744297421499,7.35722182,1562.6,1562.5,12.79374]
[1744297421800,0.0096043,1562.7,1562.6,1.28066]
[1744297422299,0.0096043,1562.7,1562.6,8.21766]
[1744297422502,0.0096043,1562.7,1562.6,3.21766]
[1744297422994,9.93819869,1563.2,1563.1,1.28025]
[1744297423199,9.93819869,1563.2,1563.1,3.2078]
[1744297423499,1.28026,1563.1,1562.8,16.58042]
[1744297423693,14.42621869,1563.2,1562.8,16.58042]
[1744297424001,1.8655,1563.1,1562.8,15.3]
[1744297424196,3.14575,1563.1,1562.8,16.5900443]
[1744297424406,1.8655,1563.1,1562.9,1.28041]
[1744297424603,14.43241677,1563.2,1562.9,1.28041]
[1744297425098,13.15218677,1563.2,1563.1,1.28025]
[1744297425404,13.15218677,1563.2,1562.8,3.2108243]
[1744297425603,13.15218677,1563.2,1563.0,1.28028]
[1744297425804,13.15218677,1563.2,1563.1,1.28025]
[1744297426408,0.00618808,1563.2,1563.1,1.28025]
[1744297426800,5.00618808,1563.2,1563.0,1.8394]
[1744297426999,1.76048808,1563.2,1563.0,3.11971]
[1744297427203,1.76048808,1563.2,1563.1,1.28025]
[1744297427398,3.04064808,1563.2,1563.1,1.28025]
[1744297427708,1.76048808,1563.2,1563.1,1.28025]
[1744297428005,0.00618808,1563.2,1563.1,1.28025]
[1744297428615,1.90298808,1563.2,1563.0,3.11967]
[1744297428903,1.28041,1562.9,1562.8,0.0096043]
[1744297429107,7.78071182,1562.9,1562.8,0.0096043]
[1744297429307,11.50030182,1562.9,1562.6,1.28061]
[1744297429605,4.48837,1562.7,1562.6,1.28061]
[1744297429907,1.28066,1562.6,1562.5,3.0395]
[1744297430505,3.2078,1562.7,1562.6,1.28066]
[1744297430506,4.48844,1562.7,1562.6,1.28066]
[1744297430702,1.28066,1562.6,1562.5,3.03951]
[1744297430903,4.48844,1562.7,1562.6,1.28066]
[1744297431105,4.4884,1562.7,1562.6,1.28066]
[1744297431401,1.28066,1562.6,1562.5,1.7588]
[1744297431598,1.8345,1562.6,1562.4,0.0096043]
[1744297431798,3.2078,1562.5,1562.4,1.8077043]
[1744297431999,4.48854,1562.5,1562.4,3.0884643]
[1744297432602,4.48854,1562.5,1562.4,1.8077043]
[1744297432805,12.78104182,1562.5,1562.4,0.0096043]
[1744297433106,3.20236,1562.3,1561.8,1.7981]
[1744297433294,3.2078,1562.0,1561.9,1.28123]
[1744297433496,1.28115,1562.0,1561.9,1.28123]
[1744297433707,3.2078,1562.2,1562.1,1.28107]
[1744297433896,6.50030182,1562.4,1562.2,1.28092]
[1744297434201,4.48862,1562.4,1562.3,3.0402]
[1744297435104,0.0096043,1562.5,1562.4,1.28082]
[1744297435407,1.2903443,1562.5,1562.4,1.7593]
[1744297435904,3.1987443,1562.5,1562.4,1.7593]
[1744297437307,3.1987443,1562.5,1562.4,3.04012]
[1744297437510,3.1987443,1562.5,1562.4,1.7593]
[1744297437700,3.1987443,1562.5,1562.4,3.04012]
[1744297438008,3.1987443,1562.5,1562.4,1.7593]
[1744297438506,1.28098,1562.2,1562.1,0.0096043]
[1744297438709,1.28098,1562.2,1561.3,3.20419]
[1744297438710,1.28141,1561.7,1561.5,1.28152]
[1744297438913,1.28141,1561.7,1561.4,1.28159]
[1744297438914,1.28139,1561.7,1561.4,1.28159]
[1744297439208,1.28157,1561.5,1561.3,1.28169]
[1744297439499,3.29250182,1561.7,1561.2,1.8265]
[1744297439705,1.28148,1561.6,1561.3,6.509]
[1744297439906,0.0096043,1561.6,1561.3,6.5186043]
[1744297440109,0.0096043,1561.6,1561.5,1.28156]
[1744297440307,1.2910843,1561.6,1561.4,1.28158]
[1744297440804,0.0096043,1561.6,1561.5,1.28156]
[1744297441405,1.28164,1561.4,1561.3,6.0056043]
[1744297441707,1.7783043,1561.6,1561.3,0.0096043]
[1744297442100,0.0096043,1561.6,1561.5,1.28156]
[1744297442315,1.28164,1561.4,1561.3,0.0096043]
[1744297442508,0.0096043,1561.6,1561.4,1.28157]
[1744297442701,0.0096043,1561.6,1561.3,1.2912743]
[1744297442904,1.28164,1561.4,1561.3,0.0096043]
[1744297443599,4.48944,1561.4,1561.3,0.0096043]
[1744297443809,7.78194182,1561.4,1561.3,0.0096043]
[1744297444303,12.78194182,1561.4,1561.3,0.0096043]
[1744297445110,12.78194182,1561.4,1561.3,4.3e-06]
[1744297446397,7.78194182,1561.4,1561.3,4.3e-06]
[1744297446596,7.78194182,1561.4,1561.3,1.8675043]
[1744297447006,7.78194182,1561.4,1561.3,4.3e-06]
[1744297447212,4.57414182,1561.4,1561.3,4.3e-06]
[1744297447409,4.57414182,1561.4,1561.3,1.8675043]
[1744297447609,7.78194182,1561.4,1561.3,4.3e-06]
[1744297447805,1.7865,1561.5,1561.4,1.28164]
[1744297448010,0.0096043,1561.6,1561.4,1.28164]
[1744297448011,0.0096043,1561.6,1561.5,1.28156]
[1744297448411,0.0096043,1561.6,1561.5,6.28156]
[1744297448613,0.0096043,1561.6,1561.5,14.63126]
[1744297449005,6.32551182,1562.1,1561.9,1.28121]
[1744297449210,1.28111,1562.1,1562.0,1.9117]
[1744297449509,1.28134,1561.8,1561.6,4.48924]
[1744297449718,6.50030182,1561.7,1561.3,4.3e-06]
[1744297449916,4.9597,1561.7,1561.3,4.3e-06]
[1744297450113,3.29250182,1561.6,1561.3,4.3e-06]
[1744297450417,1.7519,1561.7,1561.3,4.3e-06]
[1744297450418,0.0096043,1561.7,1561.6,1.28148]
[1744297450615,0.0096043,1561.7,1561.6,4.48928]
[1744297451126,0.0096043,1561.7,1561.6,1.28148]
[1744297451417,0.0096043,1561.7,1561.5,15.3]
[1744297451619,0.0096043,1561.7,1561.4,11.569]
[1744297451817,1.28155,1561.6,1561.4,8.3612]
[1744297452013,0.0096043,1561.7,1561.4,9.64283]
[1744297452014,1.2910443,1561.7,1561.4,9.64283]
[1744297452218,0.0096043,1561.7,1561.6,1.28148]
[1744297452824,0.0096043,1561.7,1561.5,3.15962]
[1744297453026,1.8512043,1561.7,1561.5,3.15966]
[1744297453325,1.8512043,1561.7,1561.5,1.8781]
[1744297453521,1.28148,1561.6,1561.5,1.8781]
[1744297453924,3.1326643,1561.7,1561.5,3.15966]
[1744297454125,1.8512043,1561.7,1561.5,1.8781]
[1744297454324,3.1326643,1561.7,1561.5,3.15964]
[1744297454524,0.0096043,1561.7,1561.6,1.28148]
[1744297456022,0.0096043,1561.7,1561.6,6.28148]
[1744297456223,0.0096043,1561.7,1561.6,1.28148]
[1744297456926,0.0096043,1561.7,1561.6,9.48928]
[1744297457230,0.0096043,1561.7,1561.6,4.48928]
[1744297457731,0.0096043,1561.7,1561.5,1.8781]
[1744297457929,11.4209543,1561.7,1561.3,4.3e-06]
[1744297458225,3.18784,1561.6,1561.4,1.28161]
[1744297458422,3.2174043,1561.7,1561.5,1.8762]
[1744297458632,1.28148,1561.6,1561.5,1.8762]
[1744297458833,3.2174043,1561.7,1561.5,1.8762]
[1744297459037,1.28148,1561.6,1561.5,3.15774]
[1744297459244,0.0096043,1561.7,1561.6,1.28148]
[1744297459439,0.0096043,1561.7,1561.6,10.92728]
[1744297459643,0.0096043,1561.7,1561.6,15.92728]
[1744297460142,4.57354182,1562.2,1562.0,1.28112]
[1744297460441,1.28104,1562.2,1562.1,1.8762]
[1744297460642,3.18726,1562.3,1562.1,3.15727]
[1744297460840,1.28098,1562.2,1562.1,1.8762]
[1744297461146,1.28115,1562.0,1561.9,1.7414]
[1744297461336,1.28138,1561.8,1561.6,1.28146]
[1744297461746,1.28138,1561.8,1561.7,1.7414]
[1744297462745,1.8173,1561.9,1561.7,1.7414]
[1744297462948,1.8173,1561.9,1561.8,1.28131]
[1744297463950,3.09857,1561.9,1561.7,3.02274]
[1744297464249,1.8173,1561.9,1561.7,1.7414]
[1744297464455,6.50030182,1562.0,1561.7,1.7414]
[1744297464752,7.78148182,1562.0,1561.9,1.28123]
[1744297464946,3.29250182,1562.0,1561.9,1.28123]
[1744297465244,3.29250182,1562.0,1561.9,7.71923]
[1744297465451,0.0096043,1562.3,1562.2,1.28098]
[1744297466341,0.0096043,1562.3,1562.2,3.19778]
[1744297466548,0.0096043,1562.3,1562.2,9.63578]
[1744297466751,0.0096043,1562.3,1562.2,1.28098]
[1744297467043,0.0096043,1562.3,1562.2,3.06958]
[1744297467248,1.2905043,1562.3,1562.2,1.7886]
[1744297467451,1.2905343,1562.3,1562.2,1.28098]
[1744297467655,1.2905043,1562.3,1562.2,1.28098]
[1744297467847,4.4983043,1562.3,1562.2,1.28098]
[1744297468047,1.2905043,1562.3,1562.2,1.28098]
[1744297468356,1.28098,1562.2,1562.1,3.0792143]
[1744297468561,3.2078,1562.6,1562.5,1.28074]
[1744297468856,1.28076,1562.5,1562.4,1.28078]
[1744297469058,1.28082,1562.4,1562.3,1.2809]
[1744297469249,1.28082,1562.4,1562.3,1.28082]
[1744297469556,3.1559,1562.5,1562.4,1.28082]
[1744297469752,1.28087,1562.4,1562.3,1.28087]
[1744297469948,6.36937,1562.4,1562.3,1.28087]
[1744297470257,6.36937,1562.4,1562.1,1.2906443]
[1744297470258,1.28098,1562.2,1562.1,1.2906443]
[1744297470652,1.2809,1562.3,1562.2,1.28091]
[1744297470958,1.28098,1562.2,1562.1,0.0096043]
[1744297471153,1.8807,1562.2,1562.1,1.2906743]
[1744297471354,1.28097,1562.3,1562.2,1.28098]
[1744297471555,5.17320182,1562.4,1562.2,3.17818]
[1744297471754,1.2809,1562.3,1562.2,1.8972]
[1744297472060,3.1616,1562.3,1562.2,3.17818]
[1744297472350,1.8807,1562.3,1562.2,3.17818]
[1744297472555,4.57338182,1562.4,1562.3,1.2809]
[1744297472754,3.29250182,1562.4,1562.3,4.4887]
[1744297472954,1.2903443,1562.5,1562.4,1.28082]
[1744297473154,1.2903443,1562.5,1562.4,3.15882]
[1744297473653,0.0096043,1562.5,1562.4,3.15882]
[1744297473851,1.2903443,1562.5,1562.4,3.15882]
[1744297474152,0.0096043,1562.5,1562.4,3.15882]
[1744297474553,4.4981443,1562.5,1562.4,3.15882]
[1744297474746,4.4981443,1562.5,1562.4,1.878]
[1744297475061,1.28098,1562.2,1562.1,7.2866743]
[1744297475356,1.28098,1562.2,1562.1,1.2906743]
[1744297475860,1.28098,1562.2,1562.1,0.0096043]
[1744297476454,11.54318182,1562.2,1562.1,0.0096043]
[1744297476661,11.54318182,1562.2,1562.1,4.3e-06]
[1744297479458,1.28156,1561.5,1561.4,9.87546478]
[1744297479759,7.78186182,1561.5,1561.4,5.52695478]
[1744297479955,7.78186182,1561.5,1561.4,3.94658188]
[1744297480161,1.28156,1561.5,1561.4,3.94658188]
[1744297480360,3.08706,1561.5,1561.4,3.94658188]
[1744297480562,3.08706,1561.5,1561.4,5.87278188]
[1744297481356,3.08706,1561.5,1561.4,1.9262]
[1744297481865,1.28164,1561.4,1561.3,0.0096043]
[1744297482063,3.23474,1561.4,1561.3,0.0096043]
[1744297485458,6.52724182,1561.4,1561.3,0.0096043]
[1744297485660,11.52724182,1561.4,1561.3,4.3e-06]
[1744297485863,1.28221,1560.7,1560.6,1.914]
[1744297486062,1.28236,1560.6,1560.4,1.8972]
[1744297486264,1.28246,1560.4,1560.3,11.03331]
[1744297486464,1.28246,1560.4,1560.3,9.73951]
[1744297486659,1.9417,1560.6,1560.3,8.457]
[1744297486660,1.28244,1560.5,1560.3,8.457]
[1744297486856,3.22403,1560.6,1560.5,1.28238]
[1744297487063,0.0096043,1560.5,1560.4,1.28243]
[1744297487565,1.2919843,1560.5,1560.4,1.28246]
[1744297487764,1.9513043,1560.5,1560.3,9.7508]
[1744297487964,1.9513043,1560.5,1560.3,7.82549]
[1744297487965,1.28246,1560.4,1560.3,7.82549]
[1744297488167,1.9513043,1560.5,1560.2,99.6298043]
[1744297488468,1.28252,1560.4,1560.3,1.28254]
[1744297488663,1.28247,1560.4,1560.3,1.2825]
[1744297488862,1.9513043,1560.5,1560.4,1.28246]
[1744297489258,0.0096043,1560.5,1560.4,1.28246]
[1744297489664,10.66562662,1560.9,1560.4,14.20215]
[1744297489960,1.28223,1560.7,1560.6,1.28224]
[1744297490157,1.2823,1560.6,1560.5,11.03412]
[1744297490363,1.2823,1560.6,1560.5,7.82632]
[1744297490556,1.28213,1560.8,1560.5,6.544]
[1744297490761,1.28219,1560.8,1560.7,1.28219]
[1744297490960,1.2917943,1560.8,1560.7,1.28219]
[1744297491361,0.0096043,1560.8,1560.7,1.28219]
[1744297491965,1.28221,1560.7,1560.6,4.49004]
[1744297492159,1.2918143,1560.8,1560.6,1.28224]
[1744297492356,1.8793043,1560.8,1560.6,1.28224]
[1744297492562,1.28221,1560.7,1560.6,1.28224]
[1744297492966,0.0096043,1560.8,1560.7,1.28221]
[1744297494071,0.0096043,1560.8,1560.7,6.28221]
[1744297494268,0.0096043,1560.8,1560.7,8.20181]
[1744297494462,0.0096043,1560.8,1560.6,1.28225]
[1744297494767,1.28232,1560.6,1560.4,7.27842]
[1744297494968,14.04530182,1560.5,1560.0,6.5]
[1744297495166,1.28271,1560.1,1560.0,6.5]
[1744297495362,7.78301182,1560.1,1560.0,1.51709598]
[1744297495563,12.78301182,1560.1,1560.0,0.11578598]
[1744297495866,4.57521182,1560.1,1560.0,0.11578598]
[1744297496569,1.28265,1560.2,1560.0,0.11578598]
[1744297496870,1.28265,1560.2,1560.0,1.39851598]
[1744297497065,5.09760182,1560.4,1560.2,1.2826]
[1744297497066,4.57502182,1560.4,1560.2,1.2826]
[1744297497273,1.28254,1560.3,1560.2,4.4904]
[1744297497575,3.29250182,1560.6,1560.3,1.28251]
[1744297497766,1.28241,1560.5,1560.3,1.28251]
[1744297498066,1.28236,1560.6,1560.3,1.28248]
[1744297498265,1.28252,1560.4,1560.1,6.547]
[1744297498472,1.28242,1560.5,1560.3,1.28252]
[1744297498670,1.28246,1560.4,1560.2,1.28257]
[1744297499169,1.28253,1560.4,1560.2,1.28257]
[1744297499377,1.28265,1560.2,1560.0,4.60630598]
[1744297499666,3.29250182,1560.4,1560.2,1.28254]
[1744297499971,1.28254,1560.3,1560.1,1.28263]
[1744297500167,1.28263,1560.2,1560.0,3.32358598]
[1744297500559,1.28263,1560.2,1560.1,1.28271]
[1744297500768,1.28271,1560.1,1560.0,3.32358598]
[1744297500967,1.28271,1560.1,1560.0,0.11578598]
[1744297501174,4.57521182,1560.1,1560.0,0.11578598]
[1744297501876,7.78301182,1560.1,1560.0,0.11578598]
[1744297502373,12.78301182,1560.1,1560.0,0.11578598]
[1744297502571,12.78301182,1560.1,1560.0,5.98e-06]
[1744297502873,15.09114753,1560.1,1560.0,5.98e-06]
[1744297503174,14.58121182,1560.1,1560.0,5.98e-06]
[1744297503977,14.58121182,1560.1,1559.1,3.2078]
[1744297503978,3.29250182,1559.9,1559.1,3.2078]
[1744297504178,6.41602,1559.4,1558.9,6.8961586]
[1744297504380,3.20861,1559.3,1558.9,5.6124986]
[1744297504673,1.8765,1559.3,1558.9,5.6124986]
[1744297504878,1.28337,1559.3,1558.9,8.8216886]
[1744297505174,1.2930043,1559.3,1559.1,1.28349]
[1744297505369,1.28345,1559.2,1559.0,1.28357]
[1744297505579,1.2930243,1559.3,1559.1,1.28353]
[1744297505968,1.28345,1559.2,1559.1,1.28353]
[1744297506169,1.28353,1559.1,1559.0,1.8679]
[1744297507383,1.28353,1559.1,1558.9,1.9081043]
[1744297507384,1.28361,1559.0,1558.9,1.9081043]
[1744297507576,3.26841,1559.0,1558.9,3.8905043]
[1744297507977,1.28345,1559.2,1559.0,1.28353]
[1744297508280,1.28345,1559.2,1559.1,1.9824]
[1744297508771,3.26825,1559.2,1559.1,1.9824]
[1744297509073,1.28361,1559.0,1558.9,0.0096043]
[1744297509276,7.78391182,1559.0,1558.9,0.0096043]
[1744297509474,4.57611182,1559.0,1558.9,0.0096043]
[1744297509982,4.57611182,1559.0,1558.9,1.8710043]
[1744297510182,4.57611182,1559.0,1558.9,0.0096043]
[1744297510571,3.29250182,1559.0,1558.9,1.2933043]
[1744297510775,3.26826,1559.2,1558.9,3.2174043]
[1744297511078,1.2930343,1559.3,1559.2,1.28345]
[1744297511284,0.0096043,1559.3,1559.1,4.49128]
[1744297511580,0.0096043,1559.3,1559.2,3.14485]
[1744297511969,3.29250182,1560.1,1559.2,12.8574]
[1744297512175,9.94376883,1560.1,1560.0,1.28272]
[1744297512881,9.94376883,1560.1,1560.0,3.26622]
[1744297513178,9.94376883,1560.1,1560.0,3.26629]
[1744297513479,12.43931534,1560.2,1560.1,1.28271]
[1744297513781,12.43931534,1560.2,1559.9,0.0096043]
[1744297513977,1.9416,1560.1,1559.9,1.9931043]
[1744297514182,12.43931534,1560.2,1560.0,3.2078]
[1744297514477,12.43931534,1560.2,1560.1,3.26621]
[1744297514684,11.10018847,1560.2,1560.1,11.63103447]
[1744297514978,6.72838847,1560.2,1560.1,16.63103447]
[1744297515477,6.72838847,1560.2,1560.1,8.26621]
[1744297515782,0.0096043,1560.2,1560.1,16.69349869]
[1744297515968,0.0096043,1560.2,1560.1,8.26621]
[1744297516170,1.2922343,1560.2,1560.1,5.1913]
[1744297516375,1.28279,1560.0,1559.9,0.0096043]
[1744297516974,5.07353,1560.1,1559.9,1.2924343]
[1744297517285,5.07353,1560.1,1560.0,1.8108]
[1744297518279,1.28279,1560.0,1559.9,0.0096043]
[1744297518487,9.62559182,1560.0,1559.9,0.0096043]
[1744297518784,14.62559182,1560.0,1559.9,0.0096043]
[1744297519375,6.33309,1560.0,1559.9,0.0096043]
[1744297519590,3.12529,1560.0,1559.9,0.0096043]
[1744297520278,6.8425,1560.0,1559.9,0.0096043]
[1744297520481,3.20721,1559.9,1559.1,6.41662]
[1744297520683,5.13500182,1559.8,1559.3,3.2078]
[1744297520982,6.41803182,1559.8,1559.6,1.28306]
[1744297521180,6.41803182,1559.8,1559.7,1.28304]
[1744297521382,1.2831,1559.7,1559.5,3.2078]
[1744297521577,5.13500182,1559.8,1559.7,1.28304]
[1744297521578,3.29250182,1559.8,1559.7,1.28304]
[1744297521890,1.9378,1560.1,1559.7,1.28304]
[1744297521891,3.29250182,1560.0,1559.9,1.28287]
[1744297522092,5.22020182,1560.0,1559.9,1.28287]
[1744297522592,5.22020182,1560.0,1559.8,1.9603]
[1744297522593,5.22020182,1560.0,1559.8,3.24319]
[1744297522794,1.28287,1559.9,1559.8,3.24319]
[1744297523093,3.2106,1559.9,1559.6,0.0096043]
[1744297523292,1.9277,1559.9,1559.8,1.28295]
[1744297523494,3.21057,1559.9,1559.8,1.28295]
[1744297523885,3.21057,1559.9,1559.7,3.24327]
[1744297524085,3.21057,1559.9,1559.8,1.28295]
[1744297524383,3.21057,1559.9,1559.7,3.24327]
[1744297524580,1.9277,1559.9,1559.8,1.28295]
[1744297524981,5.22020182,1559.9,1559.7,3.2078]
[1744297525185,1.28304,1559.7,1559.6,0.0096043]
[1744297525787,1.28337,1559.3,1559.2,1.8129]
[1744297525989,1.28334,1559.4,1559.3,1.28337]
[1744297526494,1.8575,1559.4,1559.3,1.28337]
[1744297526695,1.28337,1559.3,1559.2,3.09633]
[1744297527194,1.28345,1559.2,1559.1,3.2174043]
[1744297527500,1.28342,1559.3,1559.1,4.5008843]
[1744297527697,1.28345,1559.2,1559.1,6.4348343]
[1744297527895,1.8891,1559.3,1559.1,6.4348343]
[1744297528197,0.0096043,1559.4,1559.1,5.1513043]
[1744297528393,0.0096043,1559.4,1559.3,4.49117]
[1744297528597,1.2928843,1559.4,1559.3,4.49117]
[1744297529196,0.0096043,1559.4,1559.3,4.49117]
[1744297529693,1.2928843,1559.4,1559.3,4.49117]
[1744297529904,0.0096043,1559.4,1559.3,4.49117]
[1744297530098,1.2928843,1559.4,1559.3,4.49117]
[1744297530300,1.2928843,1559.4,1559.3,3.2078]
[1744297530802,3.1149843,1559.4,1559.3,3.2078]
[1744297531301,0.0096043,1559.4,1559.3,9.49117]
[1744297531499,11.43168553,1560.0,1559.6,1.28305]
[1744297531698,1.28294,1559.9,1559.7,3.04204]
[1744297532005,8.22470553,1560.0,1559.9,1.28287]
[1744297532208,8.22470553,1560.0,1559.9,4.49067]
[1744297532408,8.22470553,1560.0,1559.9,11.11967]
[1744297532608,5.73976895,1560.1,1559.9,14.8368]
[1744297532906,5.73976465,1560.1,1560.0,3.68339]
[1744297533206,5.73976465,1560.1,1560.0,30.64179]
[1744297533402,3.11670465,1560.1,1560.0,37.27939]
[1744297533706,3.11670465,1560.1,1560.0,37.80346956]
[1744297534101,3.11670465,1560.1,1560.0,37.27939]
[1744297534294,3.11670465,1560.1,1560.0,36.63779]
[1744297534504,3.11670465,1560.1,1560.0,43.26579]
[1744297534696,3.11670465,1560.1,1560.0,38.26579]
[1744297535406,3.11670465,1560.1,1560.0,43.26579]
[1744297535905,0.0096043,1560.1,1560.0,43.26579]
[1744297536706,3.29250182,1560.9,1560.8,1.28213]
[1744297537105,6.50395182,1560.9,1560.7,1.28221]
[1744297537303,5.22190182,1560.9,1560.6,6.627]
[1744297537502,1.28215,1560.8,1560.7,1.7735]
[1744297537713,1.28221,1560.7,1560.6,6.6366043]
[1744297537903,1.28221,1560.7,1560.6,0.0096043]
[1744297538102,9.57471182,1560.7,1560.6,0.0096043]
[1744297538408,6.50411182,1560.7,1560.6,0.0096043]
[1744297540109,3.30210612,1560.9,1560.6,3.2174043]
[1744297540308,1.28213,1560.8,1560.6,3.2174043]
[1744297540606,3.30210612,1560.9,1560.6,3.2174043]
[1744297540814,5.07140612,1560.9,1560.7,3.17515]
[1744297541013,6.35346612,1560.9,1560.7,3.17515]
[1744297541310,6.35345612,1560.9,1560.8,3.2078]
[1744297541608,1.28221,1560.7,1560.6,0.0096043]
[1744297542013,6.35350612,1560.9,1560.7,1.28219]
[1744297542205,6.35350612,1560.9,1560.8,1.893]
[1744297543116,5.07140612,1560.9,1560.6,0.0096043]
[1744297543310,6.35351612,1560.9,1560.7,1.28218]
[1744297543503,1.28213,1560.8,1560.7,1.7677]
[1744297543805,3.21093,1560.8,1560.7,1.7677]
[1744297544014,3.211,1560.8,1560.6,7.9488743]
[1744297544212,3.211,1560.8,1560.6,9.7165743]
[1744297545115,3.21093,1560.8,1560.7,1.7677]
[1744297545311,1.2916843,1560.9,1560.7,3.04991]
[1744297545511,0.0096043,1560.9,1560.8,1.28213]
[1744297545813,1.2916543,1560.9,1560.7,3.04985]
[1744297546012,1.28213,1560.8,1560.7,1.7677]
[1744297546311,1.28279,1560.0,1559.5,14.941103]
[1744297546505,1.28312,1559.6,1559.5,14.941103]
[1744297546712,4.49092,1559.6,1559.5,14.941103]
[1744297547012,13.2251687,1559.6,1559.5,5.32367301]
[1744297547415,14.9794687,1559.6,1559.5,2.68340301]
[1744297547611,14.9794687,1559.6,1559.5,1.29553301]
[1744297547803,14.97912512,1559.6,1559.5,1.29553301]
[1744297548002,14.97912512,1559.6,1559.5,3.01e-06]
[1744297548207,9.97912512,1559.6,1559.5,3.01e-06]
[1744297548811,1.2832,1559.5,1559.4,0.0096043]
[1744297549005,3.6261033,1559.5,1559.4,0.0096043]
[1744297550811,3.1847,1559.5,1559.4,0.0096043]
[1744297552118,3.2078,1559.6,1559.4,0.0096043]
[1744297552312,1.2832,1559.5,1559.4,0.0096043]
[1744297552514,3.1331,1559.5,1559.4,0.0096043]
[1744297552913,3.2078,1559.6,1559.4,5.0096043]
[1744297553117,3.2078,1559.8,1559.7,1.28304]
[1744297553719,1.8499,1560.0,1559.9,1.28287]
[1744297553912,3.20719,1559.9,1559.5,26.2511]
[1744297554114,1.2832,1559.5,1559.4,0.0096043]
[1744297554717,9.95078039,1559.5,1559.4,0.0096043]
[1744297555225,9.95078039,1559.5,1559.4,4.3e-06]
[1744297556521,4.95078039,1559.5,1559.4,4.3e-06]
[1744297556920,4.49098,1559.6,1559.5,1.2832]
[1744297557219,3.15882,1559.6,1559.5,3.1259]
[1744297557419,1.8757,1559.6,1559.5,3.1259]
[1744297557823,1.2832,1559.5,1559.4,1.2832343]
[1744297558218,3.2078,1559.6,1559.5,1.2832]
[1744297558415,1.9784,1559.7,1559.6,1.28312]
[1744297558719,1.28318,1559.6,1559.5,1.28319]
[1744297558915,1.28318,1559.6,1559.4,4.3e-06]
[1744297558916,1.2832,1559.5,1559.4,4.3e-06]
[1744297559109,5.63038575,1559.5,1559.4,4.3e-06]